Workbook

Sheet list
A3: المقاول
A4: احمد حمدان
A5: ام حمزة
A6: احمد شبل

Sheet تقرير تفصيلى
B2: التاريخ | C2: التاريخ | D2: مكان الشغل | E2: اسم المقاول | F2: العدد | G2: الاجمالى | H2: الواصل | I2: الباقى | J2: عدد اليومية | N2: =+H7+I7+J7+K7+L7+N7+O7+P7+Q7+R7+S7+T7 -> 288209
B3: =">="&C6 -> >=45778 | C3: ="<="&D6 -> <=45838 | D3: 13 مشتل | E3: احمد حمدان | F3: =SUBTOTAL(9,$F$10:$F$12000) -> 0 | G3: =SUBTOTAL(9,$G$10:$G$1600) -> 4738 | H3: =SUBTOTAL(9,$W$10:$W$1600) -> 55086 | I3: =+G3-H3 -> -50348 | J3: عدد الاشراف | N3: =+M7 -> 633 | U3: =+N2+N3+N4 -> 343928
J4: الاضافى | N4: =+U7 -> 55086
C5: من تاريخ | D5: الى تاريخ | E5: تقرير تفصيلى للمقاولين2025
C6: 2025-05-01 | D6: 2025-06-30
B7: . | C7: =+C6 -> 2025-05-01 | D7: =+D6 -> 2025-06-30 | H7: =SUBTOTAL(9,H$10:H$1200) -> 780 | I7: =SUBTOTAL(9,I$10:I$1200) -> 284280 | J7: =SUBTOTAL(9,J$10:J$1200) -> 47 | K7: 15 | L7: 503 | M7: 633 | N7: 763 | O7: 893 | P7: 50 | Q7: 52 | R7: 54 | S7: 386 | T7: 386 | U7: =SUBTOTAL(9,U$10:U$1200) -> 55086 | W7: =SUBTOTAL(9,W$10:W$1200) -> 55086
B9: التاريخ | C9: اليوم | D9: مكان الشغل | E9: اسم المقاول | F9: الوحدة | G9: العدد | H9: اليومية | I9: القيمة | J9: زراعة مشتل | L9: فرز شتلة | M9: حشائش مشتل | N9: رش | O9: تخريج | P9: تسطير | Q9: ملش | R9: 1 | S9: 1 | T9: 1 | U9: 1 | V9: 1 | W9: 1 | X9: اضافى | Y9: واصل
J10: عدد الساعات | K10: عدد العمالة
A11: 1 | B11: 2025-05-02 | C11: السبت | D11: 13 مشتل | E11: احمد حمدان | F11: ساعة | G11: 42 | H11: 60 | I11: 2520 | J11: 3 | K11: 14 | L11: 11 | M11: 21 | N11: 31 | O11: 41 | P11: 22 | Q11: 23 | R11: 24 | S11: 2 | T11: 2 | U11: 2 | V11: 2 | W11: 2 | X11: 2
A12: 2 | B12: 2025-05-08 | C12: الثلاثاء | D12: 13 مشتل | E12: احمد حمدان | F12: ساعة | G12: 256 | H12: 60 | I12: 15360 | J12: 44 | K12: 1 | L12: 17 | M12: 27 | N12: 37 | O12: 47 | P12: 28 | Q12: 29 | R12: 30 | S12: 8 | T12: 8 | U12: 8 | V12: 8 | W12: 8 | X12: 8
A13: 3 | B13: 2025-05-11 | C13: الخميس | D13: 13 مشتل | E13: احمد حمدان | F13: ساعة | G13: 195 | H13: 60 | I13: 11700 | L13: 20 | M13: 30 | N13: 40 | O13: 50 | S13: 11 | T13: 11 | U13: 11 | V13: 11 | W13: 11 | X13: 11
A14: 4 | B14: 2025-05-17 | C14: الأحد | D14: 13 مشتل | E14: احمد حمدان | F14: ساعة | G14: 249 | H14: 60 | I14: 14940 | L14: 26 | M14: 36 | N14: 46 | O14: 56 | S14: 17 | T14: 17 | U14: 17 | V14: 17 | W14: 17 | X14: 17
A15: 5 | B15: 2025-05-20 | C15: الإثنين | D15: 13 مشتل | E15: احمد حمدان | F15: ساعة | G15: 276 | H15: 60 | I15: 16560 | L15: 29 | M15: 39 | N15: 49 | O15: 59 | S15: 20 | T15: 20 | U15: 20 | V15: 20 | W15: 20 | X15: 20
A16: 6 | B16: 2025-05-26 | C16: السبت | D16: 13 مشتل | E16: احمد حمدان | F16: ساعة | G16: 330 | H16: 60 | I16: 19800 | L16: 35 | M16: 45 | N16: 55 | O16: 65 | S16: 26 | T16: 26 | U16: 26 | V16: 26 | W16: 26 | X16: 26
A17: 7 | B17: 2025-05-29 | C17: الثلاثاء | D17: 13 مشتل | E17: احمد حمدان | F17: ساعة | G17: 357 | H17: 60 | I17: 21420 | L17: 38 | M17: 48 | N17: 58 | O17: 68 | S17: 29 | T17: 29 | U17: 29 | V17: 29 | W17: 29 | X17: 29
A18: 8 | B18: 2025-06-04 | C18: الإثنين | D18: 13 مشتل | E18: احمد حمدان | F18: ساعة | G18: 411 | H18: 60 | I18: 24660 | L18: 44 | M18: 54 | N18: 64 | O18: 74 | S18: 35 | T18: 35 | U18: 35 | V18: 35 | W18: 35 | X18: 35
A19: 9 | B19: 2025-06-07 | C19: الخميس | D19: 13 مشتل | E19: احمد حمدان | F19: ساعة | G19: 438 | H19: 60 | I19: 26280 | L19: 47 | M19: 57 | N19: 67 | O19: 77 | S19: 38 | T19: 38 | U19: 38 | V19: 38 | W19: 38 | X19: 38
A20: 10 | B20: 2025-06-13 | C20: الأربعاء | D20: 13 مشتل | E20: احمد حمدان | F20: ساعة | G20: 492 | H20: 60 | I20: 29520 | L20: 53 | M20: 63 | N20: 73 | O20: 83 | S20: 44 | T20: 44 | U20: 44 | V20: 44 | W20: 44 | X20: 44
A21: 11 | B21: 2025-06-16 | C21: السبت | D21: 13 مشتل | E21: احمد حمدان | F21: ساعة | G21: 519 | H21: 60 | I21: 31140 | L21: 56 | M21: 66 | N21: 76 | O21: 86 | S21: 47 | T21: 47 | U21: 47 | V21: 47 | W21: 47 | X21: 47
A22: 12 | B22: 2025-06-22 | C22: الجمعة | D22: 13 مشتل | E22: احمد حمدان | F22: ساعة | G22: 573 | H22: 60 | I22: 34380 | L22: 62 | M22: 72 | N22: 82 | O22: 92 | S22: 53 | T22: 53 | U22: 53 | V22: 53 | W22: 53 | X22: 53
A23: 13 | B23: 2025-06-25 | C23: الإثنين | D23: 13 مشتل | E23: احمد حمدان | F23: ساعة | G23: 600 | H23: 60 | I23: 36000 | L23: 65 | M23: 75 | N23: 85 | O23: 95 | S23: 56 | T23: 56 | U23: 56 | V23: 56 | W23: 56 | X23: 56
U24: 25 | V24: 25 | W24: 25 | X24: 25
U25: 27 | V25: 27 | W25: 27 | X25: 27
U26: 28 | V26: 28 | W26: 28 | X26: 28
U27: 30 | V27: 30 | W27: 30 | X27: 30
U28: 32 | V28: 32 | W28: 32 | X28: 32
U29: 34 | V29: 34 | W29: 34 | X29: 34
U30: 36 | V30: 36 | W30: 36 | X30: 36
U31: 37 | V31: 37 | W31: 37 | X31: 37
U32: 39 | V32: 39 | W32: 39 | X32: 39
U33: 41 | V33: 41 | W33: 41 | X33: 41
U34: 43 | V34: 43 | W34: 43 | X34: 43
U35: 45 | V35: 45 | W35: 45 | X35: 45
U36: 46 | V36: 46 | W36: 46 | X36: 46
U37: 48 | V37: 48 | W37: 48 | X37: 48
U38: 50 | V38: 50 | W38: 50 | X38: 50
U39: 52 | V39: 52 | W39: 52 | X39: 52
U40: 54 | V40: 54 | W40: 54 | X40: 54
U41: 55 | V41: 55 | W41: 55 | X41: 55
U42: 57 | V42: 57 | W42: 57 | X42: 57
U43: 59 | V43: 59 | W43: 59 | X43: 59
U44: 61 | V44: 61 | W44: 61 | X44: 61
U45: 137 | V45: 137 | W45: 137 | X45: 137
U46: 138 | V46: 138 | W46: 138 | X46: 138
U47: 145 | V47: 145 | W47: 145 | X47: 145
U48: 146 | V48: 146 | W48: 146 | X48: 146
U49: 153 | V49: 153 | W49: 153 | X49: 153
U50: 154 | V50: 154 | W50: 154 | X50: 154
U51: 161 | V51: 161 | W51: 161 | X51: 161
U52: 162 | V52: 162 | W52: 162 | X52: 162
U53: 169 | V53: 169 | W53: 169 | X53: 169
U54: 170 | V54: 170 | W54: 170 | X54: 170
U55: 177 | V55: 177 | W55: 177 | X55: 177
U56: 178 | V56: 178 | W56: 178 | X56: 178
U57: 185 | V57: 185 | W57: 185 | X57: 185
U58: 186 | V58: 186 | W58: 186 | X58: 186
U59: 193 | V59: 193 | W59: 193 | X59: 193
U60: 194 | V60: 194 | W60: 194 | X60: 194
U61: 201 | V61: 201 | W61: 201 | X61: 201
U62: 202 | V62: 202 | W62: 202 | X62: 202
U63: 209 | V63: 209 | W63: 209 | X63: 209
U64: 210 | V64: 210 | W64: 210 | X64: 210
U65: 217 | V65: 217 | W65: 217 | X65: 217
U66: 218 | V66: 218 | W66: 218 | X66: 218
U67: 225 | V67: 225 | W67: 225 | X67: 225
U68: 226 | V68: 226 | W68: 226 | X68: 226
U69: 233 | V69: 233 | W69: 233 | X69: 233
U70: 234 | V70: 234 | W70: 234 | X70: 234
U71: 241 | V71: 241 | W71: 241 | X71: 241
U72: 242 | V72: 242 | W72: 242 | X72: 242
U73: 249 | V73: 249 | W73: 249 | X73: 249
U74: 250 | V74: 250 | W74: 250 | X74: 250
U75: 257 | V75: 257 | W75: 257 | X75: 257
U76: 258 | V76: 258 | W76: 258 | X76: 258
U77: 265 | V77: 265 | W77: 265 | X77: 265
U78: 266 | V78: 266 | W78: 266 | X78: 266
U79: 273 | V79: 273 | W79: 273 | X79: 273
U80: 274 | V80: 274 | W80: 274 | X80: 274
U81: 281 | V81: 281 | W81: 281 | X81: 281
U82: 282 | V82: 282 | W82: 282 | X82: 282
U83: 289 | V83: 289 | W83: 289 | X83: 289
U84: 290 | V84: 290 | W84: 290 | X84: 290
U85: 297 | V85: 297 | W85: 297 | X85: 297
U86: 298 | V86: 298 | W86: 298 | X86: 298
U87: 305 | V87: 305 | W87: 305 | X87: 305
U88: 306 | V88: 306 | W88: 306 | X88: 306
U89: 313 | V89: 313 | W89: 313 | X89: 313
U90: 314 | V90: 314 | W90: 314 | X90: 314
U91: 321 | V91: 321 | W91: 321 | X91: 321
U92: 322 | V92: 322 | W92: 322 | X92: 322
U93: 329 | V93: 329 | W93: 329 | X93: 329
U94: 330 | V94: 330 | W94: 330 | X94: 330
U95: 337 | V95: 337 | W95: 337 | X95: 337
U96: 338 | V96: 338 | W96: 338 | X96: 338
U97: 345 | V97: 345 | W97: 345 | X97: 345
U98: 346 | V98: 346 | W98: 346 | X98: 346
U99: 353 | V99: 353 | W99: 353 | X99: 353
U100: 354 | V100: 354 | W100: 354 | X100: 354
U101: 361 | V101: 361 | W101: 361 | X101: 361
U102: 362 | V102: 362 | W102: 362 | X102: 362
U103: 369 | V103: 369 | W103: 369 | X103: 369
U104: 370 | V104: 370 | W104: 370 | X104: 370
U105: 377 | V105: 377 | W105: 377 | X105: 377
U106: 378 | V106: 378 | W106: 378 | X106: 378
U107: 385 | V107: 385 | W107: 385 | X107: 385
U108: 386 | V108: 386 | W108: 386 | X108: 386
U109: 393 | V109: 393 | W109: 393 | X109: 393
U110: 394 | V110: 394 | W110: 394 | X110: 394
U111: 401 | V111: 401 | W111: 401 | X111: 401
U112: 402 | V112: 402 | W112: 402 | X112: 402
U113: 409 | V113: 409 | W113: 409 | X113: 409
U114: 410 | V114: 410 | W114: 410 | X114: 410
U115: 417 | V115: 417 | W115: 417 | X115: 417
U116: 418 | V116: 418 | W116: 418 | X116: 418
U117: 425 | V117: 425 | W117: 425 | X117: 425
U118: 426 | V118: 426 | W118: 426 | X118: 426
U119: 433 | V119: 433 | W119: 433 | X119: 433
U120: 434 | V120: 434 | W120: 434 | X120: 434
U121: 441 | V121: 441 | W121: 441 | X121: 441
U122: 442 | V122: 442 | W122: 442 | X122: 442
U123: 449 | V123: 449 | W123: 449 | X123: 449
U124: 450 | V124: 450 | W124: 450 | X124: 450
U125: 457 | V125: 457 | W125: 457 | X125: 457
U126: 458 | V126: 458 | W126: 458 | X126: 458
U127: 465 | V127: 465 | W127: 465 | X127: 465
U128: 466 | V128: 466 | W128: 466 | X128: 466
U129: 473 | V129: 473 | W129: 473 | X129: 473
U130: 474 | V130: 474 | W130: 474 | X130: 474
U131: 481 | V131: 481 | W131: 481 | X131: 481
U132: 482 | V132: 482 | W132: 482 | X132: 482
U133: 489 | V133: 489 | W133: 489 | X133: 489
U134: 490 | V134: 490 | W134: 490 | X134: 490
U135: 497 | V135: 497 | W135: 497 | X135: 497
U136: 498 | V136: 498 | W136: 498 | X136: 498
U137: 505 | V137: 505 | W137: 505 | X137: 505
U138: 506 | V138: 506 | W138: 506 | X138: 506
U139: 513 | V139: 513 | W139: 513 | X139: 513
U140: 514 | V140: 514 | W140: 514 | X140: 514
U141: 521 | V141: 521 | W141: 521 | X141: 521
U142: 522 | V142: 522 | W142: 522 | X142: 522
U143: 529 | V143: 529 | W143: 529 | X143: 529
U144: 530 | V144: 530 | W144: 530 | X144: 530
U145: 537 | V145: 537 | W145: 537 | X145: 537
U146: 538 | V146: 538 | W146: 538 | X146: 538
U147: 545 | V147: 545 | W147: 545 | X147: 545
U148: 546 | V148: 546 | W148: 546 | X148: 546
U149: 553 | V149: 553 | W149: 553 | X149: 553
U150: 554 | V150: 554 | W150: 554 | X150: 554
U151: 561 | V151: 561 | W151: 561 | X151: 561
U152: 562 | V152: 562 | W152: 562 | X152: 562
U153: 569 | V153: 569 | W153: 569 | X153: 569
U154: 570 | V154: 570 | W154: 570 | X154: 570
U155: 577 | V155: 577 | W155: 577 | X155: 577
U156: 578 | V156: 578 | W156: 578 | X156: 578
U157: 585 | V157: 585 | W157: 585 | X157: 585
U158: 586 | V158: 586 | W158: 586 | X158: 586
U159: 593 | V159: 593 | W159: 593 | X159: 593
U160: 594 | V160: 594 | W160: 594 | X160: 594
U161: 601 | V161: 601 | W161: 601 | X161: 601
U162: 602 | V162: 602 | W162: 602 | X162: 602
U163: 609 | V163: 609 | W163: 609 | X163: 609
U164: 610 | V164: 610 | W164: 610 | X164: 610
U165: 617 | V165: 617 | W165: 617 | X165: 617
U166: 618 | V166: 618 | W166: 618 | X166: 618
U167: 625 | V167: 625 | W167: 625 | X167: 625
U168: 626 | V168: 626 | W168: 626 | X168: 626
U169: 633 | V169: 633 | W169: 633 | X169: 633
U170: 634 | V170: 634 | W170: 634 | X170: 634
U171: 641 | V171: 641 | W171: 641 | X171: 641
U172: 642 | V172: 642 | W172: 642 | X172: 642
U173: 649 | V173: 649 | W173: 649 | X173: 649
U174: 650 | V174: 650 | W174: 650 | X174: 650
U175: 657 | V175: 657 | W175: 657 | X175: 657
U176: 658 | V176: 658 | W176: 658 | X176: 658
U177: 665 | V177: 665 | W177: 665 | X177: 665
U178: 666 | V178: 666 | W178: 666 | X178: 666
X179: 250
X180: 250
X181: 250
X182: 250
X183: 250
X184: 250
X185: 250
X186: 250
X187: 250
X188: 250
X189: 250
X190: 250
X191: 250
X192: 250
X193: 250
X194: 250
X195: 250
X196: 250
X197: 250
X198: 250
X199: 250
X200: 250
X201: 250
X202: 250
... 50 more rows

Sheet يومية المقاولين
C1: 0 | D1: =SUBTOTAL(9,D8:D130001) -> 0 | E1: =SUBTOTAL(9,E8:E130001) -> 0 | G1: =SUBTOTAL(9,G8:G130001) -> 1514444 | I1: =SUBTOTAL(9,I8:I130001) -> 90866640 | L1: =SUBTOTAL(9,L8:L130001) -> 89631 | O1: =SUBTOTAL(9,O8:O130001) -> 102051 | W1: =SUBTOTAL(9,W8:W130001) -> 226128 | Y1: =SUBTOTAL(9,Y8:Y130001) -> 0 | AA1: أبو حمزة | AB1: احمد حمدان
B3: بيان يومى تفصيلى المقاولين والمزرعة 2025
E4: الاجمالى الكلى
B6: التاريخ | C6: اليوم | D6: مكان الشغل | E6: اسم المقاول | F6: الوحدة | G6: العدد | H6: اليومية | I6: القيمة | J6: زراعة مشتل | L6: فرز شتلة | M6: حشائش مشتل | N6: رش | O6: تخريج | P6: تسطير | Q6: ملش | R6: 1 | S6: 1 | T6: 1 | U6: 1 | V6: 1 | W6: 1 | X6: اضافى | Y6: واصل
J7: عدد الساعات | K7: عدد العمالة
B8: 2025-05-01 | C8: السبت | D8: 13 مشتل | E8: ام حمزة | F8: ساعة | G8: =+J8*K8 -> 24 | H8: 60 | I8: =+G8*H8 -> 1440 | J8: 3 | K8: 8 | L8: 10 | M8: 20 | N8: 30 | O8: 40 | P8: 10 | Q8: 11 | R8: 12 | S8: 1 | T8: 1 | U8: 1 | V8: 1 | W8: 1 | X8: 1
B9: 2025-05-02 | C9: السبت | D9: 13 مشتل | E9: احمد حمدان | F9: ساعة | G9: =+J9*K9 -> 42 | H9: 60 | I9: =+G9*H9 -> 2520 | J9: 3 | K9: 14 | L9: 11 | M9: 21 | N9: 31 | O9: 41 | P9: 22 | Q9: 23 | R9: 24 | S9: 2 | T9: 2 | U9: 2 | V9: 2 | W9: 2 | X9: 2
B10: 2025-05-03 | C10: الأحد | D10: 14 مشتل | E10: ام حمزة | F10: ساعة | G10: =SUM(K10:W10) -> 197 | H10: 60 | I10: =+G10*H10 -> 11820 | J10: 5 | K10: 2 | L10: 12 | M10: 22 | N10: 32 | O10: 42 | P10: 23 | Q10: 24 | R10: 25 | S10: 3 | T10: 3 | U10: 3 | V10: 3 | W10: 3 | X10: 3
B11: 2025-05-04 | C11: الأحد | D11: 15 مشتل | E11: احمد حمدان | F11: ساعة | G11: 210 | H11: 60 | I11: 12600 | J11: 2 | K11: 3 | L11: 13 | M11: 23 | N11: 33 | O11: 43 | P11: 24 | Q11: 25 | R11: 26 | S11: 4 | T11: 4 | U11: 4 | V11: 4 | W11: 4 | X11: 4
B12: 2025-05-05 | C12: الإثنين | D12: 16 مشتل | E12: ام حمزة | F12: ساعة | G12: 224 | H12: 60 | I12: 13440 | J12: 6 | K12: 5 | L12: 14 | M12: 24 | N12: 34 | O12: 44 | P12: 25 | Q12: 26 | R12: 27 | S12: 5 | T12: 5 | U12: 5 | V12: 5 | W12: 5 | X12: 5
B13: 2025-05-06 | C13: الإثنين | D13: 17 مشتل | E13: احمد شبل | F13: ساعة | G13: 233 | H13: 60 | I13: 13980 | J13: 4 | K13: 2 | L13: 15 | M13: 25 | N13: 35 | O13: 45 | P13: 26 | Q13: 27 | R13: 28 | S13: 6 | T13: 6 | U13: 6 | V13: 6 | W13: 6 | X13: 6
B14: 2025-05-07 | C14: الثلاثاء | D14: 18 مشتل | E14: ام حمزة | F14: ساعة | G14: 246 | H14: 60 | I14: 14760 | J14: 10 | K14: 3 | L14: 16 | M14: 26 | N14: 36 | O14: 46 | P14: 27 | Q14: 28 | R14: 29 | S14: 7 | T14: 7 | U14: 7 | V14: 7 | W14: 7 | X14: 7
B15: 2025-05-08 | C15: الثلاثاء | D15: 13 مشتل | E15: احمد حمدان | F15: ساعة | G15: 256 | H15: 60 | I15: 15360 | J15: 44 | K15: 1 | L15: 17 | M15: 27 | N15: 37 | O15: 47 | P15: 28 | Q15: 29 | R15: 30 | S15: 8 | T15: 8 | U15: 8 | V15: 8 | W15: 8 | X15: 8
B16: 2025-05-09 | C16: الأربعاء | D16: 13 مشتل | E16: ام حمزة | F16: ساعة | G16: 277 | H16: 60 | I16: 16620 | J16: 12 | K16: 10 | L16: 18 | M16: 28 | N16: 38 | O16: 48 | P16: 29 | Q16: 30 | R16: 31 | S16: 9 | T16: 9 | U16: 9 | V16: 9 | W16: 9 | X16: 9
B17: 2025-05-10 | C17: الأربعاء | D17: 13 مشتل | E17: ام حمزة | F17: ساعة | G17: 186 | H17: 60 | I17: 11160 | L17: 19 | M17: 29 | N17: 39 | O17: 49 | S17: 10 | T17: 10 | U17: 10 | V17: 10 | W17: 10 | X17: 10
B18: 2025-05-11 | C18: الخميس | D18: 13 مشتل | E18: احمد حمدان | F18: ساعة | G18: 195 | H18: 60 | I18: 11700 | L18: 20 | M18: 30 | N18: 40 | O18: 50 | S18: 11 | T18: 11 | U18: 11 | V18: 11 | W18: 11 | X18: 11
B19: 2025-05-12 | C19: الخميس | D19: 14 مشتل | E19: ام حمزة | F19: ساعة | G19: 204 | H19: 60 | I19: 12240 | L19: 21 | M19: 31 | N19: 41 | O19: 51 | S19: 12 | T19: 12 | U19: 12 | V19: 12 | W19: 12 | X19: 12
B20: 2025-05-13 | C20: الجمعة | D20: 15 مشتل | E20: احمد حمدان | F20: ساعة | G20: 213 | H20: 60 | I20: 12780 | L20: 22 | M20: 32 | N20: 42 | O20: 52 | S20: 13 | T20: 13 | U20: 13 | V20: 13 | W20: 13 | X20: 13
B21: 2025-05-14 | C21: الجمعة | D21: 16 مشتل | E21: ام حمزة | F21: ساعة | G21: 222 | H21: 60 | I21: 13320 | L21: 23 | M21: 33 | N21: 43 | O21: 53 | S21: 14 | T21: 14 | U21: 14 | V21: 14 | W21: 14 | X21: 14
B22: 2025-05-15 | C22: السبت | D22: 17 مشتل | E22: احمد شبل | F22: ساعة | G22: 231 | H22: 60 | I22: 13860 | L22: 24 | M22: 34 | N22: 44 | O22: 54 | S22: 15 | T22: 15 | U22: 15 | V22: 15 | W22: 15 | X22: 15
B23: 2025-05-16 | C23: السبت | D23: 18 مشتل | E23: ام حمزة | F23: ساعة | G23: 240 | H23: 60 | I23: 14400 | L23: 25 | M23: 35 | N23: 45 | O23: 55 | S23: 16 | T23: 16 | U23: 16 | V23: 16 | W23: 16 | X23: 16
B24: 2025-05-17 | C24: الأحد | D24: 13 مشتل | E24: احمد حمدان | F24: ساعة | G24: 249 | H24: 60 | I24: 14940 | L24: 26 | M24: 36 | N24: 46 | O24: 56 | S24: 17 | T24: 17 | U24: 17 | V24: 17 | W24: 17 | X24: 17
B25: 2025-05-18 | C25: الأحد | D25: 13 مشتل | E25: ام حمزة | F25: ساعة | G25: 258 | H25: 60 | I25: 15480 | L25: 27 | M25: 37 | N25: 47 | O25: 57 | S25: 18 | T25: 18 | U25: 18 | V25: 18 | W25: 18 | X25: 18
B26: 2025-05-19 | C26: الإثنين | D26: 13 مشتل | E26: ام حمزة | F26: ساعة | G26: 267 | H26: 60 | I26: 16020 | L26: 28 | M26: 38 | N26: 48 | O26: 58 | S26: 19 | T26: 19 | U26: 19 | V26: 19 | W26: 19 | X26: 19
B27: 2025-05-20 | C27: الإثنين | D27: 13 مشتل | E27: احمد حمدان | F27: ساعة | G27: 276 | H27: 60 | I27: 16560 | L27: 29 | M27: 39 | N27: 49 | O27: 59 | S27: 20 | T27: 20 | U27: 20 | V27: 20 | W27: 20 | X27: 20
B28: 2025-05-21 | C28: الثلاثاء | D28: 14 مشتل | E28: ام حمزة | F28: ساعة | G28: 285 | H28: 60 | I28: 17100 | L28: 30 | M28: 40 | N28: 50 | O28: 60 | S28: 21 | T28: 21 | U28: 21 | V28: 21 | W28: 21 | X28: 21
B29: 2025-05-22 | C29: الثلاثاء | D29: 15 مشتل | E29: احمد حمدان | F29: ساعة | G29: 294 | H29: 60 | I29: 17640 | L29: 31 | M29: 41 | N29: 51 | O29: 61 | S29: 22 | T29: 22 | U29: 22 | V29: 22 | W29: 22 | X29: 22
B30: 2025-05-23 | C30: الأربعاء | D30: 16 مشتل | E30: ام حمزة | F30: ساعة | G30: 303 | H30: 60 | I30: 18180 | L30: 32 | M30: 42 | N30: 52 | O30: 62 | S30: 23 | T30: 23 | U30: 23 | V30: 23 | W30: 23 | X30: 23
B31: 2025-05-24 | C31: الخميس | D31: 17 مشتل | E31: احمد شبل | F31: ساعة | G31: 312 | H31: 60 | I31: 18720 | L31: 33 | M31: 43 | N31: 53 | O31: 63 | S31: 24 | T31: 24 | U31: 24 | V31: 24 | W31: 24 | X31: 24
B32: 2025-05-25 | C32: الجمعة | D32: 18 مشتل | E32: ام حمزة | F32: ساعة | G32: 321 | H32: 60 | I32: 19260 | L32: 34 | M32: 44 | N32: 54 | O32: 64 | S32: 25 | T32: 25 | U32: 25 | V32: 25 | W32: 25 | X32: 25
B33: 2025-05-26 | C33: السبت | D33: 13 مشتل | E33: احمد حمدان | F33: ساعة | G33: 330 | H33: 60 | I33: 19800 | L33: 35 | M33: 45 | N33: 55 | O33: 65 | S33: 26 | T33: 26 | U33: 26 | V33: 26 | W33: 26 | X33: 26
B34: 2025-05-27 | C34: الأحد | D34: 13 مشتل | E34: ام حمزة | F34: ساعة | G34: 339 | H34: 60 | I34: 20340 | L34: 36 | M34: 46 | N34: 56 | O34: 66 | S34: 27 | T34: 27 | U34: 27 | V34: 27 | W34: 27 | X34: 27
B35: 2025-05-28 | C35: الإثنين | D35: 13 مشتل | E35: ام حمزة | F35: ساعة | G35: 348 | H35: 60 | I35: 20880 | L35: 37 | M35: 47 | N35: 57 | O35: 67 | S35: 28 | T35: 28 | U35: 28 | V35: 28 | W35: 28 | X35: 28
B36: 2025-05-29 | C36: الثلاثاء | D36: 13 مشتل | E36: احمد حمدان | F36: ساعة | G36: 357 | H36: 60 | I36: 21420 | L36: 38 | M36: 48 | N36: 58 | O36: 68 | S36: 29 | T36: 29 | U36: 29 | V36: 29 | W36: 29 | X36: 29
B37: 2025-05-30 | C37: الأربعاء | D37: 14 مشتل | E37: ام حمزة | F37: ساعة | G37: 366 | H37: 60 | I37: 21960 | L37: 39 | M37: 49 | N37: 59 | O37: 69 | S37: 30 | T37: 30 | U37: 30 | V37: 30 | W37: 30 | X37: 30
B38: 2025-05-31 | C38: الخميس | D38: 15 مشتل | E38: احمد حمدان | F38: ساعة | G38: 375 | H38: 60 | I38: 22500 | L38: 40 | M38: 50 | N38: 60 | O38: 70 | S38: 31 | T38: 31 | U38: 31 | V38: 31 | W38: 31 | X38: 31
B39: 2025-06-01 | C39: الجمعة | D39: 16 مشتل | E39: ام حمزة | F39: ساعة | G39: 384 | H39: 60 | I39: 23040 | L39: 41 | M39: 51 | N39: 61 | O39: 71 | S39: 32 | T39: 32 | U39: 32 | V39: 32 | W39: 32 | X39: 32
B40: 2025-06-02 | C40: السبت | D40: 17 مشتل | E40: احمد شبل | F40: ساعة | G40: 393 | H40: 60 | I40: 23580 | L40: 42 | M40: 52 | N40: 62 | O40: 72 | S40: 33 | T40: 33 | U40: 33 | V40: 33 | W40: 33 | X40: 33
B41: 2025-06-03 | C41: الأحد | D41: 18 مشتل | E41: ام حمزة | F41: ساعة | G41: 402 | H41: 60 | I41: 24120 | L41: 43 | M41: 53 | N41: 63 | O41: 73 | S41: 34 | T41: 34 | U41: 34 | V41: 34 | W41: 34 | X41: 34
B42: 2025-06-04 | C42: الإثنين | D42: 13 مشتل | E42: احمد حمدان | F42: ساعة | G42: 411 | H42: 60 | I42: 24660 | L42: 44 | M42: 54 | N42: 64 | O42: 74 | S42: 35 | T42: 35 | U42: 35 | V42: 35 | W42: 35 | X42: 35
B43: 2025-06-05 | C43: الثلاثاء | D43: 13 مشتل | E43: ام حمزة | F43: ساعة | G43: 420 | H43: 60 | I43: 25200 | L43: 45 | M43: 55 | N43: 65 | O43: 75 | S43: 36 | T43: 36 | U43: 36 | V43: 36 | W43: 36 | X43: 36
B44: 2025-06-06 | C44: الأربعاء | D44: 13 مشتل | E44: ام حمزة | F44: ساعة | G44: 429 | H44: 60 | I44: 25740 | L44: 46 | M44: 56 | N44: 66 | O44: 76 | S44: 37 | T44: 37 | U44: 37 | V44: 37 | W44: 37 | X44: 37
B45: 2025-06-07 | C45: الخميس | D45: 13 مشتل | E45: احمد حمدان | F45: ساعة | G45: 438 | H45: 60 | I45: 26280 | L45: 47 | M45: 57 | N45: 67 | O45: 77 | S45: 38 | T45: 38 | U45: 38 | V45: 38 | W45: 38 | X45: 38
B46: 2025-06-08 | C46: الجمعة | D46: 14 مشتل | E46: ام حمزة | F46: ساعة | G46: 447 | H46: 60 | I46: 26820 | L46: 48 | M46: 58 | N46: 68 | O46: 78 | S46: 39 | T46: 39 | U46: 39 | V46: 39 | W46: 39 | X46: 39
B47: 2025-06-09 | C47: السبت | D47: 15 مشتل | E47: احمد حمدان | F47: ساعة | G47: 456 | H47: 60 | I47: 27360 | L47: 49 | M47: 59 | N47: 69 | O47: 79 | S47: 40 | T47: 40 | U47: 40 | V47: 40 | W47: 40 | X47: 40
B48: 2025-06-10 | C48: الأحد | D48: 16 مشتل | E48: ام حمزة | F48: ساعة | G48: 465 | H48: 60 | I48: 27900 | L48: 50 | M48: 60 | N48: 70 | O48: 80 | S48: 41 | T48: 41 | U48: 41 | V48: 41 | W48: 41 | X48: 41
B49: 2025-06-11 | C49: الإثنين | D49: 17 مشتل | E49: احمد شبل | F49: ساعة | G49: 474 | H49: 60 | I49: 28440 | L49: 51 | M49: 61 | N49: 71 | O49: 81 | S49: 42 | T49: 42 | U49: 42 | V49: 42 | W49: 42 | X49: 42
B50: 2025-06-12 | C50: الثلاثاء | D50: 18 مشتل | E50: ام حمزة | F50: ساعة | G50: 483 | H50: 60 | I50: 28980 | L50: 52 | M50: 62 | N50: 72 | O50: 82 | S50: 43 | T50: 43 | U50: 43 | V50: 43 | W50: 43 | X50: 43
B51: 2025-06-13 | C51: الأربعاء | D51: 13 مشتل | E51: احمد حمدان | F51: ساعة | G51: 492 | H51: 60 | I51: 29520 | L51: 53 | M51: 63 | N51: 73 | O51: 83 | S51: 44 | T51: 44 | U51: 44 | V51: 44 | W51: 44 | X51: 44
B52: 2025-06-14 | C52: الخميس | D52: 13 مشتل | E52: ام حمزة | F52: ساعة | G52: 501 | H52: 60 | I52: 30060 | L52: 54 | M52: 64 | N52: 74 | O52: 84 | S52: 45 | T52: 45 | U52: 45 | V52: 45 | W52: 45 | X52: 45
B53: 2025-06-15 | C53: الجمعة | D53: 13 مشتل | E53: ام حمزة | F53: ساعة | G53: 510 | H53: 60 | I53: 30600 | L53: 55 | M53: 65 | N53: 75 | O53: 85 | S53: 46 | T53: 46 | U53: 46 | V53: 46 | W53: 46 | X53: 46
B54: 2025-06-16 | C54: السبت | D54: 13 مشتل | E54: احمد حمدان | F54: ساعة | G54: 519 | H54: 60 | I54: 31140 | L54: 56 | M54: 66 | N54: 76 | O54: 86 | S54: 47 | T54: 47 | U54: 47 | V54: 47 | W54: 47 | X54: 47
B55: 2025-06-17 | C55: الأحد | D55: 14 مشتل | E55: ام حمزة | F55: ساعة | G55: 528 | H55: 60 | I55: 31680 | L55: 57 | M55: 67 | N55: 77 | O55: 87 | S55: 48 | T55: 48 | U55: 48 | V55: 48 | W55: 48 | X55: 48
B56: 2025-06-18 | C56: الإثنين | D56: 15 مشتل | E56: احمد حمدان | F56: ساعة | G56: 537 | H56: 60 | I56: 32220 | L56: 58 | M56: 68 | N56: 78 | O56: 88 | S56: 49 | T56: 49 | U56: 49 | V56: 49 | W56: 49 | X56: 49
B57: 2025-06-19 | C57: الثلاثاء | D57: 16 مشتل | E57: ام حمزة | F57: ساعة | G57: 546 | H57: 60 | I57: 32760 | L57: 59 | M57: 69 | N57: 79 | O57: 89 | S57: 50 | T57: 50 | U57: 50 | V57: 50 | W57: 50 | X57: 50
B58: 2025-06-20 | C58: الأربعاء | D58: 17 مشتل | E58: احمد شبل | F58: ساعة | G58: 555 | H58: 60 | I58: 33300 | L58: 60 | M58: 70 | N58: 80 | O58: 90 | S58: 51 | T58: 51 | U58: 51 | V58: 51 | W58: 51 | X58: 51
B59: 2025-06-21 | C59: الخميس | D59: 18 مشتل | E59: ام حمزة | F59: ساعة | G59: 564 | H59: 60 | I59: 33840 | L59: 61 | M59: 71 | N59: 81 | O59: 91 | S59: 52 | T59: 52 | U59: 52 | V59: 52 | W59: 52 | X59: 52
B60: 2025-06-22 | C60: الجمعة | D60: 13 مشتل | E60: احمد حمدان | F60: ساعة | G60: 573 | H60: 60 | I60: 34380 | L60: 62 | M60: 72 | N60: 82 | O60: 92 | S60: 53 | T60: 53 | U60: 53 | V60: 53 | W60: 53 | X60: 53
B61: 2025-06-23 | C61: السبت | D61: 13 مشتل | E61: ام حمزة | F61: ساعة | G61: 582 | H61: 60 | I61: 34920 | L61: 63 | M61: 73 | N61: 83 | O61: 93 | S61: 54 | T61: 54 | U61: 54 | V61: 54 | W61: 54 | X61: 54
B62: 2025-06-24 | C62: الأحد | D62: 13 مشتل | E62: ام حمزة | F62: ساعة | G62: 591 | H62: 60 | I62: 35460 | L62: 64 | M62: 74 | N62: 84 | O62: 94 | S62: 55 | T62: 55 | U62: 55 | V62: 55 | W62: 55 | X62: 55
B63: 2025-06-25 | C63: الإثنين | D63: 13 مشتل | E63: احمد حمدان | F63: ساعة | G63: 600 | H63: 60 | I63: 36000 | L63: 65 | M63: 75 | N63: 85 | O63: 95 | S63: 56 | T63: 56 | U63: 56 | V63: 56 | W63: 56 | X63: 56
B64: 2025-06-26 | C64: الثلاثاء | D64: 14 مشتل | E64: ام حمزة | F64: ساعة | G64: 609 | H64: 60 | I64: 36540 | L64: 66 | M64: 76 | N64: 86 | O64: 96 | S64: 57 | T64: 57 | U64: 57 | V64: 57 | W64: 57 | X64: 57
B65: 2025-06-27 | C65: الأربعاء | D65: 15 مشتل | E65: احمد حمدان | F65: ساعة | G65: 618 | H65: 60 | I65: 37080 | L65: 67 | M65: 77 | N65: 87 | O65: 97 | S65: 58 | T65: 58 | U65: 58 | V65: 58 | W65: 58 | X65: 58
B66: 2025-06-28 | C66: الأربعاء | D66: 16 مشتل | E66: ام حمزة | F66: ساعة | G66: 627 | H66: 60 | I66: 37620 | L66: 68 | M66: 78 | N66: 88 | O66: 98 | S66: 59 | T66: 59 | U66: 59 | V66: 59 | W66: 59 | X66: 59
B67: 2025-06-29 | C67: الأربعاء | D67: 17 مشتل | E67: احمد شبل | F67: ساعة | G67: 636 | H67: 60 | I67: 38160 | L67: 69 | M67: 79 | N67: 89 | O67: 99 | S67: 60 | T67: 60 | U67: 60 | V67: 60 | W67: 60 | X67: 60
B68: 2025-06-30 | C68: الأربعاء | D68: 18 مشتل | E68: ام حمزة | F68: ساعة | G68: 645 | H68: 60 | I68: 38700 | L68: 70 | M68: 80 | N68: 90 | O68: 100 | S68: 61 | T68: 61 | U68: 61 | V68: 61 | W68: 61 | X68: 61
B69: 2025-07-01 | C69: الأربعاء | D69: 13 مشتل | E69: احمد حمدان | F69: ساعة | G69: 654 | H69: 60 | I69: 39240 | L69: 71 | M69: 81 | N69: 91 | O69: 101 | S69: 62 | T69: 62 | U69: 62 | V69: 62 | W69: 62 | X69: 62
B70: 2025-07-02 | C70: الأربعاء | D70: 13 مشتل | E70: ام حمزة | F70: ساعة | G70: 663 | H70: 60 | I70: 39780 | L70: 72 | M70: 82 | N70: 92 | O70: 102 | S70: 63 | T70: 63 | U70: 63 | V70: 63 | W70: 63 | X70: 63
B71: 2025-07-03 | C71: الأربعاء | D71: 13 مشتل | E71: ام حمزة | F71: ساعة | G71: 672 | H71: 60 | I71: 40320 | L71: 73 | M71: 83 | N71: 93 | O71: 103 | S71: 64 | T71: 64 | U71: 64 | V71: 64 | W71: 64 | X71: 64
B72: 2025-07-04 | C72: الأربعاء | D72: 13 مشتل | E72: احمد حمدان | F72: ساعة | G72: 681 | H72: 60 | I72: 40860 | L72: 74 | M72: 84 | N72: 94 | O72: 104 | S72: 65 | T72: 65 | U72: 65 | V72: 65 | W72: 65 | X72: 65
B73: 2025-07-05 | C73: الأربعاء | D73: 14 مشتل | E73: ام حمزة | F73: ساعة | G73: =SUM(K73:W73) -> 690 | H73: 60 | I73: =+G73*H73 -> 41400 | L73: 75 | M73: 85 | N73: 95 | O73: 105 | S73: 66 | T73: 66 | U73: 66 | V73: 66 | W73: 66 | X73: 66
B74: 2025-07-06 | C74: الأربعاء | D74: 15 مشتل | E74: احمد حمدان | F74: ساعة | G74: 699 | H74: 60 | I74: 41940 | L74: 76 | M74: 86 | N74: 96 | O74: 106 | S74: 67 | T74: 67 | U74: 67 | V74: 67 | W74: 67 | X74: 67
B75: 2025-07-07 | C75: الأربعاء | D75: 16 مشتل | E75: ام حمزة | F75: ساعة | G75: 708 | H75: 60 | I75: 42480 | L75: 77 | M75: 87 | N75: 97 | O75: 107 | S75: 68 | T75: 68 | U75: 68 | V75: 68 | W75: 68 | X75: 68
B76: 2025-07-08 | C76: الأربعاء | D76: 17 مشتل | E76: احمد شبل | F76: ساعة | G76: 717 | H76: 60 | I76: 43020 | L76: 78 | M76: 88 | N76: 98 | O76: 108 | S76: 69 | T76: 69 | U76: 69 | V76: 69 | W76: 69 | X76: 69
B77: 2025-07-09 | C77: الأربعاء | D77: 18 مشتل | E77: ام حمزة | F77: ساعة | G77: 726 | H77: 60 | I77: 43560 | L77: 79 | M77: 89 | N77: 99 | O77: 109 | S77: 70 | T77: 70 | U77: 70 | V77: 70 | W77: 70 | X77: 70
B78: 2025-07-10 | C78: الأربعاء | D78: 13 مشتل | E78: احمد حمدان | F78: ساعة | G78: 735 | H78: 60 | I78: 44100 | L78: 80 | M78: 90 | N78: 100 | O78: 110 | S78: 71 | T78: 71 | U78: 71 | V78: 71 | W78: 71 | X78: 71
B79: 2025-07-11 | C79: الأربعاء | D79: 13 مشتل | E79: ام حمزة | F79: ساعة | G79: 744 | H79: 60 | I79: 44640 | L79: 81 | M79: 91 | N79: 101 | O79: 111 | S79: 72 | T79: 72 | U79: 72 | V79: 72 | W79: 72 | X79: 72
B80: 2025-07-12 | C80: الأربعاء | D80: 13 مشتل | E80: ام حمزة | F80: ساعة | G80: 753 | H80: 60 | I80: 45180 | L80: 82 | M80: 92 | N80: 102 | O80: 112 | S80: 73 | T80: 73 | U80: 73 | V80: 73 | W80: 73 | X80: 73
B81: 2025-07-13 | C81: الأربعاء | D81: 13 مشتل | E81: احمد حمدان | F81: ساعة | G81: 762 | H81: 60 | I81: 45720 | L81: 83 | M81: 93 | N81: 103 | O81: 113 | S81: 74 | T81: 74 | U81: 74 | V81: 74 | W81: 74 | X81: 74
B82: 2025-07-14 | C82: الأربعاء | D82: 14 مشتل | E82: ام حمزة | F82: ساعة | G82: 771 | H82: 60 | I82: 46260 | L82: 84 | M82: 94 | N82: 104 | O82: 114 | S82: 75 | T82: 75 | U82: 75 | V82: 75 | W82: 75 | X82: 75
B83: 2025-07-15 | C83: الأربعاء | D83: 15 مشتل | E83: احمد حمدان | F83: ساعة | G83: 780 | H83: 60 | I83: 46800 | L83: 85 | M83: 95 | N83: 105 | O83: 115 | S83: 76 | T83: 76 | U83: 76 | V83: 76 | W83: 76 | X83: 76
B84: 2025-07-16 | C84: الأربعاء | D84: 16 مشتل | E84: ام حمزة | F84: ساعة | G84: 789 | H84: 60 | I84: 47340 | L84: 86 | M84: 96 | N84: 106 | O84: 116 | S84: 77 | T84: 77 | U84: 77 | V84: 77 | W84: 77 | X84: 77
B85: 2025-07-17 | C85: الأربعاء | D85: 17 مشتل | E85: احمد شبل | F85: ساعة | G85: 798 | H85: 60 | I85: 47880 | L85: 87 | M85: 97 | N85: 107 | O85: 117 | S85: 78 | T85: 78 | U85: 78 | V85: 78 | W85: 78 | X85: 78
B86: 2025-07-18 | C86: الأربعاء | D86: 18 مشتل | E86: ام حمزة | F86: ساعة | G86: 807 | H86: 60 | I86: 48420 | L86: 88 | M86: 98 | N86: 108 | O86: 118 | S86: 79 | T86: 79 | U86: 79 | V86: 79 | W86: 79 | X86: 79
B87: 2025-07-19 | C87: الأربعاء | D87: 13 مشتل | E87: احمد حمدان | F87: ساعة | G87: 816 | H87: 60 | I87: 48960 | L87: 89 | M87: 99 | N87: 109 | O87: 119 | S87: 80 | T87: 80 | U87: 80 | V87: 80 | W87: 80 | X87: 80
B88: 2025-07-20 | C88: الأربعاء | D88: 13 مشتل | E88: ام حمزة | F88: ساعة | G88: 825 | H88: 60 | I88: 49500 | L88: 90 | M88: 100 | N88: 110 | O88: 120 | S88: 81 | T88: 81 | U88: 81 | V88: 81 | W88: 81 | X88: 81
B89: 2025-07-21 | C89: الأربعاء | D89: 13 مشتل | E89: ام حمزة | F89: ساعة | G89: 834 | H89: 60 | I89: 50040 | L89: 91 | M89: 101 | N89: 111 | O89: 121 | S89: 82 | T89: 82 | U89: 82 | V89: 82 | W89: 82 | X89: 82
B90: 2025-07-22 | C90: الأربعاء | D90: 13 مشتل | E90: احمد حمدان | F90: ساعة | G90: 843 | H90: 60 | I90: 50580 | L90: 92 | M90: 102 | N90: 112 | O90: 122 | S90: 83 | T90: 83 | U90: 83 | V90: 83 | W90: 83 | X90: 83
B91: 2025-07-23 | C91: الأربعاء | D91: 14 مشتل | E91: ام حمزة | F91: ساعة | G91: 852 | H91: 60 | I91: 51120 | L91: 93 | M91: 103 | N91: 113 | O91: 123 | S91: 84 | T91: 84 | U91: 84 | V91: 84 | W91: 84 | X91: 84
B92: 2025-07-24 | C92: الأربعاء | D92: 15 مشتل | E92: احمد حمدان | F92: ساعة | G92: 861 | H92: 60 | I92: 51660 | L92: 94 | M92: 104 | N92: 114 | O92: 124 | S92: 85 | T92: 85 | U92: 85 | V92: 85 | W92: 85 | X92: 85
B93: 2025-07-25 | C93: الأربعاء | D93: 16 مشتل | E93: ام حمزة | F93: ساعة | G93: 870 | H93: 60 | I93: 52200 | L93: 95 | M93: 105 | N93: 115 | O93: 125 | S93: 86 | T93: 86 | U93: 86 | V93: 86 | W93: 86 | X93: 86
B94: 2025-07-26 | C94: الأربعاء | D94: 17 مشتل | E94: احمد شبل | F94: ساعة | G94: 879 | H94: 60 | I94: 52740 | L94: 96 | M94: 106 | N94: 116 | O94: 126 | S94: 87 | T94: 87 | U94: 87 | V94: 87 | W94: 87 | X94: 87
B95: 2025-07-27 | C95: الأربعاء | D95: 18 مشتل | E95: ام حمزة | F95: ساعة | G95: 888 | H95: 60 | I95: 53280 | L95: 97 | M95: 107 | N95: 117 | O95: 127 | S95: 88 | T95: 88 | U95: 88 | V95: 88 | W95: 88 | X95: 88
B96: 2025-07-28 | C96: الأربعاء | D96: 13 مشتل | E96: احمد حمدان | F96: ساعة | G96: 897 | H96: 60 | I96: 53820 | L96: 98 | M96: 108 | N96: 118 | O96: 128 | S96: 89 | T96: 89 | U96: 89 | V96: 89 | W96: 89 | X96: 89
B97: 2025-07-29 | C97: الخميس | D97: 13 مشتل | E97: ام حمزة | F97: ساعة | G97: 906 | H97: 60 | I97: 54360 | L97: 99 | M97: 109 | N97: 119 | O97: 129 | S97: 90 | T97: 90 | U97: 90 | V97: 90 | W97: 90 | X97: 90
B98: 2025-07-30 | C98: الخميس | D98: 13 مشتل | E98: ام حمزة | F98: ساعة | G98: 915 | H98: 60 | I98: 54900 | L98: 100 | M98: 110 | N98: 120 | O98: 130 | S98: 91 | T98: 91 | U98: 91 | V98: 91 | W98: 91 | X98: 91
B99: 2025-07-31 | C99: السبت | D99: 13 مشتل | E99: احمد حمدان | F99: ساعة | G99: 924 | H99: 60 | I99: 55440 | L99: 101 | M99: 111 | N99: 121 | O99: 131 | S99: 92 | T99: 92 | U99: 92 | V99: 92 | W99: 92 | X99: 92
B100: 2025-08-01 | C100: السبت | D100: 14 مشتل | E100: ام حمزة | F100: ساعة | G100: 933 | H100: 60 | I100: 55980 | L100: 102 | M100: 112 | N100: 122 | O100: 132 | S100: 93 | T100: 93 | U100: 93 | V100: 93 | W100: 93 | X100: 93
B101: 2025-08-02 | C101: الأحد | D101: 15 مشتل | E101: احمد حمدان | F101: ساعة | G101: 942 | H101: 60 | I101: 56520 | L101: 103 | M101: 113 | N101: 123 | O101: 133 | S101: 94 | T101: 94 | U101: 94 | V101: 94 | W101: 94 | X101: 94
B102: 2025-08-03 | C102: الأحد | D102: 16 مشتل | E102: ام حمزة | F102: ساعة | G102: 951 | H102: 60 | I102: 57060 | L102: 104 | M102: 114 | N102: 124 | O102: 134 | S102: 95 | T102: 95 | U102: 95 | V102: 95 | W102: 95 | X102: 95
B103: 2025-08-04 | C103: الإثنين | D103: 17 مشتل | E103: احمد شبل | F103: ساعة | G103: 960 | H103: 60 | I103: 57600 | L103: 105 | M103: 115 | N103: 125 | O103: 135 | S103: 96 | T103: 96 | U103: 96 | V103: 96 | W103: 96 | X103: 96
B104: 2025-08-05 | C104: الإثنين | D104: 18 مشتل | E104: ام حمزة | F104: ساعة | G104: 969 | H104: 60 | I104: 58140 | L104: 106 | M104: 116 | N104: 126 | O104: 136 | S104: 97 | T104: 97 | U104: 97 | V104: 97 | W104: 97 | X104: 97
B105: 2025-08-06 | C105: الثلاثاء | D105: 13 مشتل | E105: احمد حمدان | F105: ساعة | G105: 978 | H105: 60 | I105: 58680 | L105: 107 | M105: 117 | N105: 127 | O105: 137 | S105: 98 | T105: 98 | U105: 98 | V105: 98 | W105: 98 | X105: 98
B106: 2025-08-07 | C106: الثلاثاء | D106: 13 مشتل | E106: ام حمزة | F106: ساعة | G106: 987 | H106: 60 | I106: 59220 | L106: 108 | M106: 118 | N106: 128 | O106: 138 | S106: 99 | T106: 99 | U106: 99 | V106: 99 | W106: 99 | X106: 99
B107: 2025-08-08 | C107: الأربعاء | D107: 13 مشتل | E107: ام حمزة | F107: ساعة | G107: 996 | H107: 60 | I107: 59760 | L107: 109 | M107: 119 | N107: 129 | O107: 139 | S107: 100 | T107: 100 | U107: 100 | V107: 100 | W107: 100 | X107: 100
B108: 2025-08-09 | C108: الأربعاء | D108: 13 مشتل | E108: احمد حمدان | F108: ساعة | G108: 1005 | H108: 60 | I108: 60300 | L108: 110 | M108: 120 | N108: 130 | O108: 140 | S108: 101 | T108: 101 | U108: 101 | V108: 101 | W108: 101 | X108: 101
B109: 2025-08-10 | C109: الخميس | D109: 14 مشتل | E109: ام حمزة | F109: ساعة | G109: 1014 | H109: 60 | I109: 60840 | L109: 111 | M109: 121 | N109: 131 | O109: 141 | S109: 102 | T109: 102 | U109: 102 | V109: 102 | W109: 102 | X109: 102
B110: 2025-08-11 | C110: الخميس | D110: 15 مشتل | E110: احمد حمدان | F110: ساعة | G110: 1023 | H110: 60 | I110: 61380 | L110: 112 | M110: 122 | N110: 132 | O110: 142 | S110: 103 | T110: 103 | U110: 103 | V110: 103 | W110: 103 | X110: 103
B111: 2025-08-12 | C111: الجمعة | D111: 16 مشتل | E111: ام حمزة | F111: ساعة | G111: 1032 | H111: 60 | I111: 61920 | L111: 113 | M111: 123 | N111: 133 | O111: 143 | S111: 104 | T111: 104 | U111: 104 | V111: 104 | W111: 104 | X111: 104
B112: 2025-08-13 | C112: الجمعة | D112: 17 مشتل | E112: احمد شبل | F112: ساعة | G112: 1041 | H112: 60 | I112: 62460 | L112: 114 | M112: 124 | N112: 134 | O112: 144 | S112: 105 | T112: 105 | U112: 105 | V112: 105 | W112: 105 | X112: 105
B113: 2025-08-14 | C113: السبت | D113: 18 مشتل | E113: ام حمزة | F113: ساعة | G113: 1050 | H113: 60 | I113: 63000 | L113: 115 | M113: 125 | N113: 135 | O113: 145 | S113: 106 | T113: 106 | U113: 106 | V113: 106 | W113: 106 | X113: 106
B114: 2025-08-15 | C114: السبت | D114: 13 مشتل | E114: احمد حمدان | F114: ساعة | G114: 1059 | H114: 60 | I114: 63540 | L114: 116 | M114: 126 | N114: 136 | O114: 146 | S114: 107 | T114: 107 | U114: 107 | V114: 107 | W114: 107 | X114: 107
B115: 2025-08-16 | C115: الأحد | D115: 13 مشتل | E115: ام حمزة | F115: ساعة | G115: 1068 | H115: 60 | I115: 64080 | L115: 117 | M115: 127 | N115: 137 | O115: 147 | S115: 108 | T115: 108 | U115: 108 | V115: 108 | W115: 108 | X115: 108
B116: 2025-08-17 | C116: الأحد | D116: 13 مشتل | E116: ام حمزة | F116: ساعة | G116: 1077 | H116: 60 | I116: 64620 | L116: 118 | M116: 128 | N116: 138 | O116: 148 | S116: 109 | T116: 109 | U116: 109 | V116: 109 | W116: 109 | X116: 109
B117: 2025-08-18 | C117: الإثنين | D117: 13 مشتل | E117: احمد حمدان | F117: ساعة | G117: 1086 | H117: 60 | I117: 65160 | L117: 119 | M117: 129 | N117: 139 | O117: 149 | S117: 110 | T117: 110 | U117: 110 | V117: 110 | W117: 110 | X117: 110
B118: 2025-08-19 | C118: الإثنين | D118: 14 مشتل | E118: ام حمزة | F118: ساعة | G118: 1095 | H118: 60 | I118: 65700 | L118: 120 | M118: 130 | N118: 140 | O118: 150 | S118: 111 | T118: 111 | U118: 111 | V118: 111 | W118: 111 | X118: 111
B119: 2025-08-20 | C119: الثلاثاء | D119: 15 مشتل | E119: احمد حمدان | F119: ساعة | G119: 1104 | H119: 60 | I119: 66240 | L119: 121 | M119: 131 | N119: 141 | O119: 151 | S119: 112 | T119: 112 | U119: 112 | V119: 112 | W119: 112 | X119: 112
B120: 2025-08-21 | C120: الثلاثاء | D120: 16 مشتل | E120: ام حمزة | F120: ساعة | G120: 1113 | H120: 60 | I120: 66780 | L120: 122 | M120: 132 | N120: 142 | O120: 152 | S120: 113 | T120: 113 | U120: 113 | V120: 113 | W120: 113 | X120: 113
B121: 2025-08-22 | C121: الأربعاء | D121: 17 مشتل | E121: احمد شبل | F121: ساعة | G121: 1122 | H121: 60 | I121: 67320 | L121: 123 | M121: 133 | N121: 143 | O121: 153 | S121: 114 | T121: 114 | U121: 114 | V121: 114 | W121: 114 | X121: 114
B122: 2025-08-23 | C122: الأربعاء | D122: 18 مشتل | E122: ام حمزة | F122: ساعة | G122: 1131 | H122: 60 | I122: 67860 | L122: 124 | M122: 134 | N122: 144 | O122: 154 | S122: 115 | T122: 115 | U122: 115 | V122: 115 | W122: 115 | X122: 115
B123: 2025-08-24 | C123: الخميس | D123: 13 مشتل | E123: احمد حمدان | F123: ساعة | G123: 1140 | H123: 60 | I123: 68400 | L123: 125 | M123: 135 | N123: 145 | O123: 155 | S123: 116 | T123: 116 | U123: 116 | V123: 116 | W123: 116 | X123: 116
B124: 2025-08-25 | C124: الخميس | D124: 13 مشتل | E124: ام حمزة | F124: ساعة | G124: 1149 | H124: 60 | I124: 68940 | L124: 126 | M124: 136 | N124: 146 | O124: 156 | S124: 117 | T124: 117 | U124: 117 | V124: 117 | W124: 117 | X124: 117
B125: 2025-08-26 | C125: الجمعة | D125: 13 مشتل | E125: ام حمزة | F125: ساعة | G125: 1158 | H125: 60 | I125: 69480 | L125: 127 | M125: 137 | N125: 147 | O125: 157 | S125: 118 | T125: 118 | U125: 118 | V125: 118 | W125: 118 | X125: 118
B126: 2025-08-27 | C126: الجمعة | D126: 13 مشتل | E126: احمد حمدان | F126: ساعة | G126: 1167 | H126: 60 | I126: 70020 | L126: 128 | M126: 138 | N126: 148 | O126: 158 | S126: 119 | T126: 119 | U126: 119 | V126: 119 | W126: 119 | X126: 119
B127: 2025-08-28 | C127: السبت | D127: 14 مشتل | E127: ام حمزة | F127: ساعة | G127: 1176 | H127: 60 | I127: 70560 | L127: 129 | M127: 139 | N127: 149 | O127: 159 | S127: 120 | T127: 120 | U127: 120 | V127: 120 | W127: 120 | X127: 120
B128: 2025-08-29 | C128: السبت | D128: 15 مشتل | E128: احمد حمدان | F128: ساعة | G128: 1185 | H128: 60 | I128: 71100 | L128: 130 | M128: 140 | N128: 150 | O128: 160 | S128: 121 | T128: 121 | U128: 121 | V128: 121 | W128: 121 | X128: 121
B129: 2025-08-30 | C129: الأحد | D129: 16 مشتل | E129: ام حمزة | F129: ساعة | G129: 1194 | H129: 60 | I129: 71640 | L129: 131 | M129: 141 | N129: 151 | O129: 161 | S129: 122 | T129: 122 | U129: 122 | V129: 122 | W129: 122 | X129: 122
B130: 2025-08-31 | C130: الأحد | D130: 17 مشتل | E130: احمد شبل | F130: ساعة | G130: 1203 | H130: 60 | I130: 72180 | L130: 132 | M130: 142 | N130: 152 | O130: 162 | S130: 123 | T130: 123 | U130: 123 | V130: 123 | W130: 123 | X130: 123
B131: 2025-09-01 | C131: الإثنين | D131: 18 مشتل | E131: ام حمزة | F131: ساعة | G131: 1212 | H131: 60 | I131: 72720 | L131: 133 | M131: 143 | N131: 153 | O131: 163 | S131: 124 | T131: 124 | U131: 124 | V131: 124 | W131: 124 | X131: 124
B132: 2025-09-02 | C132: الإثنين | D132: 13 مشتل | E132: احمد حمدان | F132: ساعة | G132: 1221 | H132: 60 | I132: 73260 | L132: 134 | M132: 144 | N132: 154 | O132: 164 | S132: 125 | T132: 125 | U132: 125 | V132: 125 | W132: 125 | X132: 125
B133: 2025-09-03 | C133: الإثنين | D133: 13 مشتل | E133: ام حمزة | F133: ساعة | G133: 1230 | H133: 60 | I133: 73800 | L133: 135 | M133: 145 | N133: 155 | O133: 165 | S133: 126 | T133: 126 | U133: 126 | V133: 126 | W133: 126 | X133: 126
B134: 2025-09-04 | C134: الثلاثاء | D134: 13 مشتل | E134: ام حمزة | F134: ساعة | G134: 1239 | H134: 60 | I134: 74340 | L134: 136 | M134: 146 | N134: 156 | O134: 166 | S134: 127 | T134: 127 | U134: 127 | V134: 127 | W134: 127 | X134: 127
B135: 2025-09-05 | C135: الثلاثاء | D135: 13 مشتل | E135: احمد حمدان | F135: ساعة | G135: 1248 | H135: 60 | I135: 74880 | L135: 137 | M135: 147 | N135: 157 | O135: 167 | S135: 128 | T135: 128 | U135: 128 | V135: 128 | W135: 128 | X135: 128
B136: 2025-09-06 | C136: الثلاثاء | D136: 14 مشتل | E136: ام حمزة | F136: ساعة | G136: 1257 | H136: 60 | I136: 75420 | L136: 138 | M136: 148 | N136: 158 | O136: 168 | S136: 129 | T136: 129 | U136: 129 | V136: 129 | W136: 129 | X136: 129
B137: 2025-09-07 | C137: الأربعاء | D137: 15 مشتل | E137: احمد حمدان | F137: ساعة | G137: =SUM(K137:W137) -> 1266 | H137: 60 | I137: =+G137*H137 -> 75960 | L137: 139 | M137: 149 | N137: 159 | O137: 169 | S137: 130 | T137: 130 | U137: 130 | V137: 130 | W137: 130 | X137: 130
B138: 2025-09-08 | C138: الأربعاء | D138: 16 مشتل | E138: ام حمزة | F138: ساعة | G138: 1275 | H138: 60 | I138: 76500 | L138: 140 | M138: 150 | N138: 160 | O138: 170 | S138: 131 | T138: 131 | U138: 131 | V138: 131 | W138: 131 | X138: 131
B139: 2025-09-09 | C139: الأربعاء | D139: 17 مشتل | E139: احمد شبل | F139: ساعة | G139: 1284 | H139: 60 | I139: 77040 | L139: 141 | M139: 151 | N139: 161 | O139: 171 | S139: 132 | T139: 132 | U139: 132 | V139: 132 | W139: 132 | X139: 132
B140: 2025-09-10 | C140: الخميس | D140: 18 مشتل | E140: ام حمزة | F140: ساعة | G140: 1293 | H140: 60 | I140: 77580 | L140: 142 | M140: 152 | N140: 162 | O140: 172 | S140: 133 | T140: 133 | U140: 133 | V140: 133 | W140: 133 | X140: 133 | AA140: =40250+1882.4 -> 42132.4
B141: 2025-09-11 | C141: الخميس | D141: 13 مشتل | E141: احمد حمدان | F141: ساعة | G141: 1302 | H141: 60 | I141: 78120 | L141: 143 | M141: 153 | N141: 163 | O141: 173 | S141: 134 | T141: 134 | U141: 134 | V141: 134 | W141: 134 | X141: 134 | AA141: 40100 | AB141: =+AA140-AA141 -> 2032.4 | AC141: =+AB141/230-W142 -> -126.1634783
B142: 2025-09-12 | C142: الخميس | D142: 13 مشتل | E142: ام حمزة | F142: ساعة | G142: 1311 | H142: 60 | I142: 78660 | L142: 144 | M142: 154 | N142: 164 | O142: 174 | S142: 135 | T142: 135 | U142: 135 | V142: 135 | W142: 135 | X142: 135 | AA142: =+H142+H143 -> 120
B143: 2025-09-13 | C143: الخميس | D143: 13 مشتل | E143: ام حمزة | F143: ساعة | G143: 1320 | H143: 60 | I143: 79200 | L143: 145 | M143: 155 | N143: 165 | O143: 175 | S143: 136 | T143: 136 | U143: 136 | V143: 136 | W143: 136 | X143: 136
B144: 2025-09-14 | C144: الخميس | D144: 13 مشتل | E144: احمد حمدان | F144: ساعة | G144: 1329 | H144: 60 | I144: 79740 | L144: 146 | M144: 156 | N144: 166 | O144: 176 | S144: 137 | T144: 137 | U144: 137 | V144: 137 | W144: 137 | X144: 137 | AA144: =+AA142+AA143 -> 120
B145: 2025-09-15 | C145: الجمعة | D145: 14 مشتل | E145: ام حمزة | F145: ساعة | G145: 1338 | H145: 60 | I145: 80280 | L145: 147 | M145: 157 | N145: 167 | O145: 177 | S145: 138 | T145: 138 | U145: 138 | V145: 138 | W145: 138 | X145: 138
B146: 2025-09-16 | C146: الجمعة | D146: 15 مشتل | E146: احمد حمدان | F146: ساعة | G146: 1347 | H146: 60 | I146: 80820 | L146: 148 | M146: 158 | N146: 168 | O146: 178 | S146: 139 | T146: 139 | U146: 139 | V146: 139 | W146: 139 | X146: 139
B147: 2025-09-17 | C147: السبت | D147: 16 مشتل | E147: ام حمزة | F147: ساعة | G147: 1356 | H147: 60 | I147: 81360 | L147: 149 | M147: 159 | N147: 169 | O147: 179 | S147: 140 | T147: 140 | U147: 140 | V147: 140 | W147: 140 | X147: 140
B148: 2025-09-18 | C148: السبت | D148: 17 مشتل | E148: احمد شبل | F148: ساعة | G148: 1365 | H148: 60 | I148: 81900 | L148: 150 | M148: 160 | N148: 170 | O148: 180 | S148: 141 | T148: 141 | U148: 141 | V148: 141 | W148: 141 | X148: 141
B149: 2025-09-19 | C149: الأحد | D149: 18 مشتل | E149: ام حمزة | F149: ساعة | G149: 1374 | H149: 60 | I149: 82440 | L149: 151 | M149: 161 | N149: 171 | O149: 181 | S149: 142 | T149: 142 | U149: 142 | V149: 142 | W149: 142 | X149: 142
B150: 2025-09-20 | C150: الأحد | D150: 13 مشتل | E150: احمد حمدان | F150: ساعة | G150: 1383 | H150: 60 | I150: 82980 | L150: 152 | M150: 162 | N150: 172 | O150: 182 | S150: 143 | T150: 143 | U150: 143 | V150: 143 | W150: 143 | X150: 143
B151: 2025-09-21 | C151: الأحد | D151: 13 مشتل | E151: ام حمزة | F151: ساعة | G151: 1392 | H151: 60 | I151: 83520 | L151: 153 | M151: 163 | N151: 173 | O151: 183 | S151: 144 | T151: 144 | U151: 144 | V151: 144 | W151: 144 | X151: 144
B152: 2025-09-22 | C152: الإثنين | D152: 13 مشتل | E152: ام حمزة | F152: ساعة | G152: 1401 | H152: 60 | I152: 84060 | L152: 154 | M152: 164 | N152: 174 | O152: 184 | S152: 145 | T152: 145 | U152: 145 | V152: 145 | W152: 145 | X152: 145
B153: 2025-09-23 | C153: الإثنين | D153: 13 مشتل | E153: احمد حمدان | F153: ساعة | G153: 1410 | H153: 60 | I153: 84600 | L153: 155 | M153: 165 | N153: 175 | O153: 185 | S153: 146 | T153: 146 | U153: 146 | V153: 146 | W153: 146 | X153: 146
B154: 2025-09-24 | C154: الثلاثاء | D154: 14 مشتل | E154: ام حمزة | F154: ساعة | G154: 1419 | H154: 60 | I154: 85140 | L154: 156 | M154: 166 | N154: 176 | O154: 186 | S154: 147 | T154: 147 | U154: 147 | V154: 147 | W154: 147 | X154: 147
B155: 2025-09-25 | C155: الثلاثاء | D155: 15 مشتل | E155: احمد حمدان | F155: ساعة | G155: 1428 | H155: 60 | I155: 85680 | L155: 157 | M155: 167 | N155: 177 | O155: 187 | S155: 148 | T155: 148 | U155: 148 | V155: 148 | W155: 148 | X155: 148
B156: 2025-09-26 | C156: الثلاثاء | D156: 16 مشتل | E156: ام حمزة | F156: ساعة | G156: 1437 | H156: 60 | I156: 86220 | L156: 158 | M156: 168 | N156: 178 | O156: 188 | S156: 149 | T156: 149 | U156: 149 | V156: 149 | W156: 149 | X156: 149
B157: 2025-09-27 | C157: الأربعاء | D157: 17 مشتل | E157: احمد شبل | F157: ساعة | G157: 1446 | H157: 60 | I157: 86760 | L157: 159 | M157: 169 | N157: 179 | O157: 189 | S157: 150 | T157: 150 | U157: 150 | V157: 150 | W157: 150 | X157: 150
B158: 2025-09-28 | C158: الأربعاء | D158: 18 مشتل | E158: ام حمزة | F158: ساعة | G158: 1455 | H158: 60 | I158: 87300 | L158: 160 | M158: 170 | N158: 180 | O158: 190 | S158: 151 | T158: 151 | U158: 151 | V158: 151 | W158: 151 | X158: 151
B159: 2025-09-29 | C159: الأربعاء | D159: 13 مشتل | E159: احمد حمدان | F159: ساعة | G159: 1464 | H159: 60 | I159: 87840 | L159: 161 | M159: 171 | N159: 181 | O159: 191 | S159: 152 | T159: 152 | U159: 152 | V159: 152 | W159: 152 | X159: 152
B160: 2025-09-30 | C160: الخميس | D160: 13 مشتل | E160: ام حمزة | F160: ساعة | G160: 1473 | H160: 60 | I160: 88380 | L160: 162 | M160: 172 | N160: 182 | O160: 192 | S160: 153 | T160: 153 | U160: 153 | V160: 153 | W160: 153 | X160: 153
B161: 2025-10-01 | C161: الخميس | D161: 13 مشتل | E161: ام حمزة | F161: ساعة | G161: 1482 | H161: 60 | I161: 88920 | L161: 163 | M161: 173 | N161: 183 | O161: 193 | S161: 154 | T161: 154 | U161: 154 | V161: 154 | W161: 154 | X161: 154
B162: 2025-10-02 | C162: الخميس | D162: 13 مشتل | E162: احمد حمدان | F162: ساعة | G162: 1491 | H162: 60 | I162: 89460 | L162: 164 | M162: 174 | N162: 184 | O162: 194 | S162: 155 | T162: 155 | U162: 155 | V162: 155 | W162: 155 | X162: 155
B163: 2025-10-03 | C163: الجمعة | D163: 14 مشتل | E163: ام حمزة | F163: ساعة | G163: 1500 | H163: 60 | I163: 90000 | L163: 165 | M163: 175 | N163: 185 | O163: 195 | S163: 156 | T163: 156 | U163: 156 | V163: 156 | W163: 156 | X163: 156
B164: 2025-10-04 | C164: الجمعة | D164: 15 مشتل | E164: احمد حمدان | F164: ساعة | G164: 1509 | H164: 60 | I164: 90540 | L164: 166 | M164: 176 | N164: 186 | O164: 196 | S164: 157 | T164: 157 | U164: 157 | V164: 157 | W164: 157 | X164: 157
B165: 2025-10-05 | C165: الجمعة | D165: 16 مشتل | E165: ام حمزة | F165: ساعة | G165: 1518 | H165: 60 | I165: 91080 | L165: 167 | M165: 177 | N165: 187 | O165: 197 | S165: 158 | T165: 158 | U165: 158 | V165: 158 | W165: 158 | X165: 158
B166: 2025-10-06 | C166: السبت | D166: 17 مشتل | E166: احمد شبل | F166: ساعة | G166: 1527 | H166: 60 | I166: 91620 | L166: 168 | M166: 178 | N166: 188 | O166: 198 | S166: 159 | T166: 159 | U166: 159 | V166: 159 | W166: 159 | X166: 159
B167: 2025-10-07 | C167: السبت | D167: 18 مشتل | E167: ام حمزة | F167: ساعة | G167: 1536 | H167: 60 | I167: 92160 | L167: 169 | M167: 179 | N167: 189 | O167: 199 | S167: 160 | T167: 160 | U167: 160 | V167: 160 | W167: 160 | X167: 160
B168: 2025-10-08 | C168: السبت | D168: 13 مشتل | E168: احمد حمدان | F168: ساعة | G168: 1545 | H168: 60 | I168: 92700 | L168: 170 | M168: 180 | N168: 190 | O168: 200 | S168: 161 | T168: 161 | U168: 161 | V168: 161 | W168: 161 | X168: 161
B169: 2025-10-09 | C169: السبت | D169: 13 مشتل | E169: ام حمزة | F169: ساعة | G169: 1554 | H169: 60 | I169: 93240 | L169: 171 | M169: 181 | N169: 191 | O169: 201 | S169: 162 | T169: 162 | U169: 162 | V169: 162 | W169: 162 | X169: 162
B170: 2025-10-10 | C170: الأحد | D170: 13 مشتل | E170: ام حمزة | F170: ساعة | G170: 1563 | H170: 60 | I170: 93780 | L170: 172 | M170: 182 | N170: 192 | O170: 202 | S170: 163 | T170: 163 | U170: 163 | V170: 163 | W170: 163 | X170: 163
B171: 2025-10-11 | C171: الأحد | D171: 13 مشتل | E171: احمد حمدان | F171: ساعة | G171: 1572 | H171: 60 | I171: 94320 | L171: 173 | M171: 183 | N171: 193 | O171: 203 | S171: 164 | T171: 164 | U171: 164 | V171: 164 | W171: 164 | X171: 164
B172: 2025-10-12 | C172: =+B172 -> 2025-10-12 | D172: 14 مشتل | E172: ام حمزة | F172: ساعة | G172: 1581 | H172: 60 | I172: 94860 | L172: 174 | M172: 184 | N172: 194 | O172: 204 | S172: 165 | T172: 165 | U172: 165 | V172: 165 | W172: 165 | X172: 165
B173: 2025-10-13 | C173: =+B173 -> 2025-10-13 | D173: 15 مشتل | E173: احمد حمدان | F173: ساعة | G173: 1590 | H173: 60 | I173: 95400 | L173: 175 | M173: 185 | N173: 195 | O173: 205 | S173: 166 | T173: 166 | U173: 166 | V173: 166 | W173: 166 | X173: 166
B174: 2025-10-14 | C174: 2025-10-14 | D174: 16 مشتل | E174: ام حمزة | F174: ساعة | G174: 1599 | H174: 60 | I174: 95940 | L174: 176 | M174: 186 | N174: 196 | O174: 206 | S174: 167 | T174: 167 | U174: 167 | V174: 167 | W174: 167 | X174: 167
B175: 2025-10-15 | C175: 2025-10-15 | D175: 17 مشتل | E175: احمد شبل | F175: ساعة | G175: 1608 | H175: 60 | I175: 96480 | L175: 177 | M175: 187 | N175: 197 | O175: 207 | S175: 168 | T175: 168 | U175: 168 | V175: 168 | W175: 168 | X175: 168
B176: 2025-10-16 | C176: 2025-10-16 | D176: 18 مشتل | E176: ام حمزة | F176: ساعة | G176: 1617 | H176: 60 | I176: 97020 | L176: 178 | M176: 188 | N176: 198 | O176: 208 | S176: 169 | T176: 169 | U176: 169 | V176: 169 | W176: 169 | X176: 169
B177: 2025-10-17 | C177: 2025-10-17 | D177: 13 مشتل | E177: احمد حمدان | F177: ساعة | G177: 1626 | H177: 60 | I177: 97560 | L177: 179 | M177: 189 | N177: 199 | O177: 209 | S177: 170 | T177: 170 | U177: 170 | V177: 170 | W177: 170 | X177: 170
B178: 2025-10-18 | C178: 2025-10-18 | D178: 13 مشتل | E178: ام حمزة | F178: ساعة | G178: 1635 | H178: 60 | I178: 98100 | L178: 180 | M178: 190 | N178: 200 | O178: 210 | S178: 171 | T178: 171 | U178: 171 | V178: 171 | W178: 171 | X178: 171
B179: 2025-10-19 | C179: 2025-10-19 | D179: 13 مشتل | E179: ام حمزة | F179: ساعة | G179: 1644 | H179: 60 | I179: 98640 | L179: 181 | M179: 191 | N179: 201 | O179: 211 | S179: 172 | T179: 172 | U179: 172 | V179: 172 | W179: 172 | X179: 172
B180: 2025-10-20 | C180: 2025-10-20 | D180: 13 مشتل | E180: احمد حمدان | F180: ساعة | G180: 1653 | H180: 60 | I180: 99180 | L180: 182 | M180: 192 | N180: 202 | O180: 212 | S180: 173 | T180: 173 | U180: 173 | V180: 173 | W180: 173 | X180: 173
B181: 2025-10-21 | C181: 2025-10-21 | D181: 14 مشتل | E181: ام حمزة | F181: ساعة | G181: 1662 | H181: 60 | I181: 99720 | L181: 183 | M181: 193 | N181: 203 | O181: 213 | S181: 174 | T181: 174 | U181: 174 | V181: 174 | W181: 174 | X181: 174
B182: 2025-10-22 | C182: 2025-10-22 | D182: 15 مشتل | E182: احمد حمدان | F182: ساعة | G182: 1671 | H182: 60 | I182: 100260 | L182: 184 | M182: 194 | N182: 204 | O182: 214 | S182: 175 | T182: 175 | U182: 175 | V182: 175 | W182: 175 | X182: 175
B183: 2025-10-23 | C183: 2025-10-23 | D183: 16 مشتل | E183: ام حمزة | F183: ساعة | G183: 1680 | H183: 60 | I183: 100800 | L183: 185 | M183: 195 | N183: 205 | O183: 215 | S183: 176 | T183: 176 | U183: 176 | V183: 176 | W183: 176 | X183: 176
B184: 2025-10-24 | C184: 2025-10-24 | D184: 17 مشتل | E184: احمد شبل | F184: ساعة | G184: 1689 | H184: 60 | I184: 101340 | L184: 186 | M184: 196 | N184: 206 | O184: 216 | S184: 177 | T184: 177 | U184: 177 | V184: 177 | W184: 177 | X184: 177
B185: 2025-10-25 | C185: 2025-10-25 | D185: 18 مشتل | E185: ام حمزة | F185: ساعة | G185: 1698 | H185: 60 | I185: 101880 | L185: 187 | M185: 197 | N185: 207 | O185: 217 | S185: 178 | T185: 178 | U185: 178 | V185: 178 | W185: 178 | X185: 178
B186: 2025-10-26 | C186: 2025-10-26 | D186: 13 مشتل | E186: احمد حمدان | F186: ساعة | G186: 1707 | H186: 60 | I186: 102420 | L186: 188 | M186: 198 | N186: 208 | O186: 218 | S186: 179 | T186: 179 | U186: 179 | V186: 179 | W186: 179 | X186: 179
B187: 2025-10-27 | C187: 2025-10-27 | D187: 13 مشتل | E187: ام حمزة | F187: ساعة | G187: 1716 | H187: 60 | I187: 102960 | L187: 189 | M187: 199 | N187: 209 | O187: 219 | S187: 180 | T187: 180 | U187: 180 | V187: 180 | W187: 180 | X187: 180
B188: 2025-10-28 | C188: 2025-10-28 | D188: 13 مشتل | E188: ام حمزة | F188: ساعة | G188: 1725 | H188: 60 | I188: 103500 | L188: 190 | M188: 200 | N188: 210 | O188: 220 | S188: 181 | T188: 181 | U188: 181 | V188: 181 | W188: 181 | X188: 181
B189: 2025-10-29 | C189: 2025-10-29 | D189: 13 مشتل | E189: احمد حمدان | F189: ساعة | G189: 1734 | H189: 60 | I189: 104040 | L189: 191 | M189: 201 | N189: 211 | O189: 221 | S189: 182 | T189: 182 | U189: 182 | V189: 182 | W189: 182 | X189: 182
B190: 2025-10-30 | C190: 2025-10-30 | D190: 14 مشتل | E190: ام حمزة | F190: ساعة | G190: 1743 | H190: 60 | I190: 104580 | L190: 192 | M190: 202 | N190: 212 | O190: 222 | S190: 183 | T190: 183 | U190: 183 | V190: 183 | W190: 183 | X190: 183
B191: 2025-10-31 | C191: 2025-10-31 | D191: 15 مشتل | E191: احمد حمدان | F191: ساعة | G191: 1752 | H191: 60 | I191: 105120 | L191: 193 | M191: 203 | N191: 213 | O191: 223 | S191: 184 | T191: 184 | U191: 184 | V191: 184 | W191: 184 | X191: 184
B192: 2025-11-01 | C192: 2025-11-01 | D192: 16 مشتل | E192: ام حمزة | F192: ساعة | G192: 1761 | H192: 60 | I192: 105660 | L192: 194 | M192: 204 | N192: 214 | O192: 224 | S192: 185 | T192: 185 | U192: 185 | V192: 185 | W192: 185 | X192: 185
B193: 2025-11-02 | C193: 2025-11-02 | D193: 17 مشتل | E193: احمد شبل | F193: ساعة | G193: 1770 | H193: 60 | I193: 106200 | L193: 195 | M193: 205 | N193: 215 | O193: 225 | S193: 186 | T193: 186 | U193: 186 | V193: 186 | W193: 186 | X193: 186
B194: 2025-11-03 | C194: 2025-11-03 | D194: 18 مشتل | E194: ام حمزة | F194: ساعة | G194: 1779 | H194: 60 | I194: 106740 | L194: 196 | M194: 206 | N194: 216 | O194: 226 | S194: 187 | T194: 187 | U194: 187 | V194: 187 | W194: 187 | X194: 187
B195: 2025-11-04 | C195: 2025-11-04 | D195: 13 مشتل | E195: احمد حمدان | F195: ساعة | G195: 1788 | H195: 60 | I195: 107280 | L195: 197 | M195: 207 | N195: 217 | O195: 227 | S195: 188 | T195: 188 | U195: 188 | V195: 188 | W195: 188 | X195: 188
B196: 2025-11-05 | C196: 2025-11-05 | D196: 13 مشتل | E196: ام حمزة | F196: ساعة | G196: 1797 | H196: 60 | I196: 107820 | L196: 198 | M196: 208 | N196: 218 | O196: 228 | S196: 189 | T196: 189 | U196: 189 | V196: 189 | W196: 189 | X196: 189
B197: 2025-11-06 | C197: 2025-11-06 | D197: 13 مشتل | E197: ام حمزة | F197: ساعة | G197: 1806 | H197: 60 | I197: 108360 | L197: 199 | M197: 209 | N197: 219 | O197: 229 | S197: 190 | T197: 190 | U197: 190 | V197: 190 | W197: 190 | X197: 190
B198: 2025-11-07 | C198: 2025-11-07 | D198: 13 مشتل | E198: احمد حمدان | F198: ساعة | G198: 1815 | H198: 60 | I198: 108900 | L198: 200 | M198: 210 | N198: 220 | O198: 230 | S198: 191 | T198: 191 | U198: 191 | V198: 191 | W198: 191 | X198: 191
B199: 2025-11-08 | C199: 2025-11-08 | D199: 14 مشتل | E199: ام حمزة | F199: ساعة | G199: 1824 | H199: 60 | I199: 109440 | L199: 201 | M199: 211 | N199: 221 | O199: 231 | S199: 192 | T199: 192 | U199: 192 | V199: 192 | W199: 192 | X199: 192
B200: 2025-11-09 | C200: 2025-11-09 | D200: 15 مشتل | E200: احمد حمدان | F200: ساعة | G200: 1833 | H200: 60 | I200: 109980 | L200: 202 | M200: 212 | N200: 222 | O200: 232 | S200: 193 | T200: 193 | U200: 193 | V200: 193 | W200: 193 | X200: 193
B201: 2025-11-10 | C201: 2025-11-10 | D201: 16 مشتل | E201: ام حمزة | F201: ساعة | G201: =SUM(K201:W201) -> 1842 | H201: 60 | I201: =+G201*H201 -> 110520 | L201: 203 | M201: 213 | N201: 223 | O201: 233 | S201: 194 | T201: 194 | U201: 194 | V201: 194 | W201: 194 | X201: 194
B202: 2025-11-11 | C202: 2025-11-11 | D202: 17 مشتل | E202: احمد شبل | F202: ساعة | G202: 1851 | H202: 60 | I202: 111060 | L202: 204 | M202: 214 | N202: 224 | O202: 234 | S202: 195 | T202: 195 | U202: 195 | V202: 195 | W202: 195 | X202: 195
... 773 more rows
